[Event "Titled Tuesday Blitz March 29 Late 2022"]
[White "Kazmaier, Daniel"]
[Black "Cagara, Paulina"]
[WhiteFideId "2606089"]
[BlackFideId "1124870"]
[WhiteElo "2387"]
[BlackElo "1780"]
[Result "1-0"]
[Round "05"]
[TimeControl "180+1"]
[Date "2022.03.30"]
[WhiteClock "0:01:13"]
[BlackClock "0:01:27"]

1. d4 {[%clk 0:02:55]}  f5 {[%clk 0:02:59]} 2. Nf3 {[%clk 0:02:55]}  Nf6 {[%clk 0:02:58]} 3. Bf4 {[%clk 0:02:55]}  g6 {[%clk 0:02:58]} 4. c4 {[%clk 0:02:55]}  d6 {[%clk 0:02:58]} 5. Nc3 {[%clk 0:02:56]}  Bg7 {[%clk 0:02:58]} 6. Qd2 {[%clk 0:02:57]}  O-O {[%clk 0:02:58]} 7. Bh6 {[%clk 0:02:57]}  Qe8 {[%clk 0:02:57]} 8. Bxg7 {[%clk 0:02:50]}  Kxg7 {[%clk 0:02:57]} 9. d5 {[%clk 0:02:46]}  e5 {[%clk 0:02:55]} 10. dxe6 {[%clk 0:02:42]}  Bxe6 {[%clk 0:02:54]} 11. e3 {[%clk 0:02:43]}  Nc6 {[%clk 0:02:53]} 12. Be2 {[%clk 0:02:39]}  Rd8 {[%clk 0:02:50]} 13. O-O {[%clk 0:02:31]}  Ne5 {[%clk 0:02:49]} 14. b3 {[%clk 0:02:28]}  a6 {[%clk 0:02:46]} 15. Rfd1 {[%clk 0:02:26]}  h6 {[%clk 0:02:42]} 16. Rac1 {[%clk 0:02:25]}  g5 {[%clk 0:02:41]} 17. Nd4 {[%clk 0:02:14]}  Bc8 {[%clk 0:02:36]} 18. Qc2 {[%clk 0:02:12]}  Qg6 {[%clk 0:02:33]} 19. Bd3 {[%clk 0:02:05]}  Nxd3 {[%clk 0:02:31]} 20. Qxd3 {[%clk 0:02:06]}  f4 {[%clk 0:02:28]} 21. Qxg6+ {[%clk 0:02:01]}  Kxg6 {[%clk 0:02:28]} 22. exf4 {[%clk 0:01:57]}  gxf4 {[%clk 0:02:21]} 23. Re1 {[%clk 0:01:58]}  Rfe8 {[%clk 0:02:20]} 24. Nd5 {[%clk 0:01:51]}  Nxd5 {[%clk 0:02:19]} 25. cxd5 {[%clk 0:01:51]}  Re5 {[%clk 0:02:10]} 26. Nf3 {[%clk 0:01:40]}  Rxd5 {[%clk 0:02:05]} 27. Rxc7 {[%clk 0:01:39]}  Bg4 {[%clk 0:02:03]} 28. Nh4+ {[%clk 0:01:34]}  Kh5 {[%clk 0:02:02]} 29. g3 {[%clk 0:01:31]}  Bh3 {[%clk 0:02:01]} 30. Ng2 {[%clk 0:01:27]}  Bxg2 {[%clk 0:01:59]} 31. Kxg2 {[%clk 0:01:28]}  fxg3 {[%clk 0:01:59]} 32. hxg3 {[%clk 0:01:27]}  b5 {[%clk 0:01:54]} 33. Re6 {[%clk 0:01:19]}  Re5 {[%clk 0:01:48]} 34. Rf6 {[%clk 0:01:14]}  Kg5 {[%clk 0:01:44]} 35. Rcf7 {[%clk 0:01:13]}  Re2 {[%clk 0:01:41]} 36. Kh3 {[%clk 0:01:13]}  d5 {[%clk 0:01:28]} 37. f4+ {[%clk 0:01:12]}  Kh5 {[%clk 0:01:27]} 38. g4# {[%clk 0:01:13]} 1-0


[Site "https://www.chess.com"]

[Event "Titled Tuesday Blitz March 29 Late 2022"]
[White "Korchmar, Vasiliy"]
[Black "Bilan, Danila"]
[WhiteFideId "24131750"]
[BlackFideId "24161918"]
[WhiteElo "2725"]
[BlackElo "2551"]
[Result "1-0"]
[Round "05"]
[TimeControl "180+1"]
[Date "2022.03.30"]
[WhiteClock "0:00:04"]
[BlackClock "0:00:06"]

1. d4 {[%clk 0:03:00]}  d5 {[%clk 0:02:58]} 2. Bf4 {[%clk 0:03:00]}  Nf6 {[%clk 0:02:58]} 3. e3 {[%clk 0:03:01]}  c5 {[%clk 0:02:59]} 4. Nf3 {[%clk 0:03:01]}  Nc6 {[%clk 0:02:59]} 5. Nbd2 {[%clk 0:03:02]}  cxd4 {[%clk 0:02:58]} 6. exd4 {[%clk 0:03:02]}  Bg4 {[%clk 0:02:59]} 7. c3 {[%clk 0:03:01]}  e6 {[%clk 0:02:59]} 8. Qb3 {[%clk 0:03:02]}  Qc8 {[%clk 0:02:53]} 9. Bd3 {[%clk 0:03:01]}  Be7 {[%clk 0:02:52]} 10. O-O {[%clk 0:03:02]}  O-O {[%clk 0:02:51]} 11. Rae1 {[%clk 0:03:03]}  Bh5 {[%clk 0:02:46]} 12. Qc2 {[%clk 0:03:03]}  Bg6 {[%clk 0:02:45]} 13. Bxg6 {[%clk 0:03:03]}  hxg6 {[%clk 0:02:46]} 14. Qd3 {[%clk 0:03:04]}  a6 {[%clk 0:02:43]} 15. Ng5 {[%clk 0:03:04]}  Nh5 {[%clk 0:02:35]} 16. Qh3 {[%clk 0:03:04]}  e5 {[%clk 0:02:13]} 17. dxe5 {[%clk 0:03:02]}  Qxh3 {[%clk 0:01:51]} 18. Nxh3 {[%clk 0:03:03]}  d4 {[%clk 0:01:44]} 19. cxd4 {[%clk 0:02:38]}  Nxf4 {[%clk 0:01:32]} 20. Nxf4 {[%clk 0:02:39]}  Nxd4 {[%clk 0:01:32]} 21. Nd5 {[%clk 0:02:36]}  Bc5 {[%clk 0:01:27]} 22. Ne4 {[%clk 0:02:35]}  Ba7 {[%clk 0:01:22]} 23. Ne7+ {[%clk 0:02:32]}  Kh7 {[%clk 0:01:10]} 24. Re3 {[%clk 0:02:33]}  Nf5 {[%clk 0:01:05]} 25. Nxf5 {[%clk 0:01:47]}  gxf5 {[%clk 0:01:02]} 26. Rh3+ {[%clk 0:01:47]}  Kg8 {[%clk 0:00:57]} 27. Nd6 {[%clk 0:01:43]}  g6 {[%clk 0:00:49]} 28. Rc1 {[%clk 0:01:23]}  Bd4 {[%clk 0:00:41]} 29. Re1 {[%clk 0:01:00]}  Bxb2 {[%clk 0:00:29]} 30. Rb3 {[%clk 0:01:00]}  Bd4 {[%clk 0:00:24]} 31. Rxb7 {[%clk 0:01:00]}  Rab8 {[%clk 0:00:20]} 32. Rc7 {[%clk 0:01:00]}  Rb2 {[%clk 0:00:18]} 33. Rf1 {[%clk 0:00:32]}  Bxe5 {[%clk 0:00:17]} 34. Nc4 {[%clk 0:00:33]}  Rc2 {[%clk 0:00:13]} 35. Rc6 {[%clk 0:00:33]}  Bd4 {[%clk 0:00:12]} 36. a4 {[%clk 0:00:27]}  Re8 {[%clk 0:00:11]} 37. Ne5 {[%clk 0:00:23]}  Rc1 {[%clk 0:00:05]} 38. Rfxc1 {[%clk 0:00:20]}  Rxe5 {[%clk 0:00:05]} 39. Rxa6 {[%clk 0:00:19]}  Re2 {[%clk 0:00:04]} 40. Rf1 {[%clk 0:00:19]}  Ra2 {[%clk 0:00:05]} 41. Ra8+ {[%clk 0:00:19]}  Kg7 {[%clk 0:00:05]} 42. a5 {[%clk 0:00:19]}  f6 {[%clk 0:00:05]} 43. a6 {[%clk 0:00:20]}  g5 {[%clk 0:00:06]} 44. g3 {[%clk 0:00:16]}  Kg6 {[%clk 0:00:07]} 45. h3 {[%clk 0:00:16]}  g4 {[%clk 0:00:07]} 46. h4 {[%clk 0:00:16]}  f4 {[%clk 0:00:07]} 47. gxf4 {[%clk 0:00:16]}  g3 {[%clk 0:00:08]} 48. Kg2 {[%clk 0:00:14]}  Bxf2 {[%clk 0:00:07]} 49. Kf3 {[%clk 0:00:09]}  Kf5 {[%clk 0:00:07]} 50. Rb1 {[%clk 0:00:05]}  Ra3+ {[%clk 0:00:07]} 51. Kg2 {[%clk 0:00:05]}  Kxf4 {[%clk 0:00:08]} 52. Rb4+ {[%clk 0:00:05]}  Kf5 {[%clk 0:00:09]} 53. Rb5+ {[%clk 0:00:05]}  Kf4 {[%clk 0:00:09]} 54. Rb4+ {[%clk 0:00:06]}  Kf5 {[%clk 0:00:10]} 55. h5 {[%clk 0:00:06]}  Ra2 {[%clk 0:00:09]} 56. h6 {[%clk 0:00:05]}  Bc5+ {[%clk 0:00:09]} 57. Kxg3 {[%clk 0:00:05]}  Bxb4 {[%clk 0:00:09]} 58. h7 {[%clk 0:00:05]}  Be1+ {[%clk 0:00:09]} 59. Kf3 {[%clk 0:00:04]}  Rf2+ {[%clk 0:00:09]} 60. Ke3 {[%clk 0:00:04]}  Rh2 {[%clk 0:00:05]} 61. h8=Q {[%clk 0:00:04]}  Rxh8 {[%clk 0:00:05]} 62. Rxh8 {[%clk 0:00:05]}  Ba5 {[%clk 0:00:06]} 63. Kd4 {[%clk 0:00:04]}  Bb6+ {[%clk 0:00:06]} 64. Kd5 {[%clk 0:00:04]}  Kf4 {[%clk 0:00:07]} 65. Kc6 {[%clk 0:00:04]}  Be3 {[%clk 0:00:07]} 66. Re8 {[%clk 0:00:04]}  Bf2 {[%clk 0:00:07]} 67. Re2 {[%clk 0:00:04]}  Bg1 {[%clk 0:00:06]} 68. Re1 {[%clk 0:00:04]}  Bd4 {[%clk 0:00:06]} 69. Rf1+ {[%clk 0:00:05]}  Kg4 {[%clk 0:00:05]} 70. Rxf6 {[%clk 0:00:03]}  Bxf6 {[%clk 0:00:06]} 71. a7 {[%clk 0:00:04]} 1-0


[Site "https://www.chess.com"]

[Event "Titled Tuesday Blitz March 29 Late 2022"]
[White "Manolache, Marius"]
[Black "Ljukin, Sergei"]
[WhiteFideId "1201530"]
[BlackFideId "14102200"]
[WhiteElo "2701"]
[BlackElo "2547"]
[Result "1-0"]
[Round "05"]
[TimeControl "180+1"]
[Date "2022.03.30"]
[WhiteClock "0:01:09"]
[BlackClock "0:00:02"]

1. d4 {[%clk 0:03:00]}  d5 {[%clk 0:02:54]} 2. c4 {[%clk 0:03:00]}  c6 {[%clk 0:02:54]} 3. Nc3 {[%clk 0:02:59]}  Nf6 {[%clk 0:02:54]} 4. Nf3 {[%clk 0:02:59]}  dxc4 {[%clk 0:02:53]} 5. e4 {[%clk 0:02:58]}  b5 {[%clk 0:02:53]} 6. e5 {[%clk 0:02:59]}  Nd5 {[%clk 0:02:54]} 7. a4 {[%clk 0:02:59]}  h6 {[%clk 0:02:53]} 8. Be2 {[%clk 0:02:55]}  Be6 {[%clk 0:02:49]} 9. Ne4 {[%clk 0:02:52]}  Nd7 {[%clk 0:02:40]} 10. O-O {[%clk 0:02:48]}  Bf5 {[%clk 0:02:39]} 11. Ng3 {[%clk 0:02:47]}  Bg6 {[%clk 0:02:39]} 12. e6 {[%clk 0:02:47]}  fxe6 {[%clk 0:02:39]} 13. Nh4 {[%clk 0:02:44]}  Bf7 {[%clk 0:02:39]} 14. Bh5 {[%clk 0:02:43]}  N7f6 {[%clk 0:02:36]} 15. Bg6 {[%clk 0:02:35]}  Bxg6 {[%clk 0:02:19]} 16. Nxg6 {[%clk 0:02:34]}  Rg8 {[%clk 0:02:19]} 17. Re1 {[%clk 0:02:33]}  Qd7 {[%clk 0:01:44]} 18. Ne5 {[%clk 0:02:31]}  Qc7 {[%clk 0:01:43]} 19. b3 {[%clk 0:02:26]}  c3 {[%clk 0:01:39]} 20. Nd3 {[%clk 0:02:18]}  b4 {[%clk 0:01:28]} 21. Rxe6 {[%clk 0:02:10]}  O-O-O {[%clk 0:01:24]} 22. a5 {[%clk 0:02:07]}  Rd6 {[%clk 0:01:19]} 23. Nc5 {[%clk 0:02:00]}  Rxe6 {[%clk 0:01:09]} 24. Nxe6 {[%clk 0:01:59]}  Qd7 {[%clk 0:01:09]} 25. Qe2 {[%clk 0:01:59]}  g6 {[%clk 0:00:58]} 26. Nc5 {[%clk 0:01:51]}  Qc7 {[%clk 0:00:53]} 27. Qe6+ {[%clk 0:01:50]}  Kd8 {[%clk 0:00:49]} 28. a6 {[%clk 0:01:50]}  Ke8 {[%clk 0:00:32]} 29. Be3 {[%clk 0:01:36]}  Bg7 {[%clk 0:00:23]} 30. Re1 {[%clk 0:01:34]}  Qd6 {[%clk 0:00:20]} 31. Qc8+ {[%clk 0:01:28]}  Kf7 {[%clk 0:00:20]} 32. Qb7 {[%clk 0:01:28]}  Qb8 {[%clk 0:00:17]} 33. Qxc6 {[%clk 0:01:16]}  Rc8 {[%clk 0:00:14]} 34. Qe6+ {[%clk 0:01:15]}  Ke8 {[%clk 0:00:10]} 35. Nge4 {[%clk 0:01:11]}  Nxe4 {[%clk 0:00:02]} 36. Qxg6+ {[%clk 0:01:10]}  Kf8 {[%clk 0:00:02]} 37. Ne6+ {[%clk 0:01:09]} 1-0


[Site "https://www.chess.com"]

[Event "Titled Tuesday Blitz March 29 Late 2022"]
[White "Mikhailov, Viacheslav"]
[Black "Petesch, Gabriel"]
[WhiteFideId "4187369"]
[BlackFideId "2032465"]
[WhiteElo "2712"]
[BlackElo "2548"]
[Result "1-0"]
[Round "05"]
[TimeControl "180+1"]
[Date "2022.03.30"]
[WhiteClock "0:01:54"]
[BlackClock "0:00:01"]

1. Nf3 {[%clk 0:02:59]}  Nf6 {[%clk 0:02:59]} 2. g3 {[%clk 0:02:59]}  c5 {[%clk 0:03:00]} 3. Bg2 {[%clk 0:02:59]}  Nc6 {[%clk 0:03:01]} 4. O-O {[%clk 0:03:00]}  g6 {[%clk 0:03:02]} 5. d4 {[%clk 0:03:01]}  cxd4 {[%clk 0:03:01]} 6. Nxd4 {[%clk 0:03:02]}  Bg7 {[%clk 0:03:00]} 7. c4 {[%clk 0:03:02]}  O-O {[%clk 0:03:00]} 8. Nc3 {[%clk 0:03:02]}  d6 {[%clk 0:02:56]} 9. b3 {[%clk 0:03:03]}  Bd7 {[%clk 0:02:48]} 10. Bb2 {[%clk 0:03:02]}  Ng4 {[%clk 0:02:40]} 11. Nd5 {[%clk 0:02:54]}  e6 {[%clk 0:02:33]} 12. Nxc6 {[%clk 0:02:53]}  Bxc6 {[%clk 0:02:33]} 13. Bxg7 {[%clk 0:02:54]}  Kxg7 {[%clk 0:02:23]} 14. Qd4+ {[%clk 0:02:54]}  Ne5 {[%clk 0:02:16]} 15. Nc3 {[%clk 0:02:14]}  Bxg2 {[%clk 0:02:12]} 16. Kxg2 {[%clk 0:02:15]}  f6 {[%clk 0:01:19]} 17. Rfd1 {[%clk 0:02:14]}  Nf7 {[%clk 0:01:19]} 18. Nb5 {[%clk 0:02:12]}  Qd7 {[%clk 0:01:03]} 19. Nxd6 {[%clk 0:02:11]}  Qc6+ {[%clk 0:00:54]} 20. Qe4 {[%clk 0:02:10]}  Qxe4+ {[%clk 0:00:53]} 21. Nxe4 {[%clk 0:02:10]}  Rfd8 {[%clk 0:00:52]} 22. Nc5 {[%clk 0:02:10]}  Kg8 {[%clk 0:00:38]} 23. Nxb7 {[%clk 0:02:07]}  Rxd1 {[%clk 0:00:27]} 24. Rxd1 {[%clk 0:02:08]}  a5 {[%clk 0:00:27]} 25. Rd7 {[%clk 0:02:05]}  a4 {[%clk 0:00:25]} 26. b4 {[%clk 0:02:05]}  a3 {[%clk 0:00:25]} 27. c5 {[%clk 0:02:05]}  Ne5 {[%clk 0:00:22]} 28. Rd8+ {[%clk 0:01:59]}  Rxd8 {[%clk 0:00:10]} 29. Nxd8 {[%clk 0:02:00]}  Nc4 {[%clk 0:00:07]} 30. b5 {[%clk 0:01:55]}  Kf8 {[%clk 0:00:04]} 31. b6 {[%clk 0:01:55]}  Na5 {[%clk 0:00:01]} 32. b7 {[%clk 0:01:54]}  Nc6 {[%clk 0:00:01]} 33. Nxc6 {[%clk 0:01:54]} 1-0


[Site "https://www.chess.com"]

[Event "Titled Tuesday Blitz March 29 Late 2022"]
[White "Moskalenko, Alexander"]
[Black "Lewtak, Damian"]
[WhiteFideId "4155351"]
[BlackFideId "1141724"]
[WhiteElo "2475"]
[BlackElo "2362"]
[Result "1-0"]
[Round "05"]
[TimeControl "180+1"]
[Date "2022.03.29"]
[WhiteClock "0:01:01"]
[BlackClock "0:01:37"]

1. Nf3 {[%clk 0:02:30]}  d5 {[%clk 0:02:59]} 2. e3 {[%clk 0:02:27]}  g6 {[%clk 0:02:57]} 3. c4 {[%clk 0:02:26]}  c6 {[%clk 0:02:57]} 4. d4 {[%clk 0:02:21]}  Bg7 {[%clk 0:02:57]} 5. h3 {[%clk 0:02:20]}  Nf6 {[%clk 0:02:57]} 6. Be2 {[%clk 0:02:21]}  O-O {[%clk 0:02:58]} 7. O-O {[%clk 0:02:22]}  Ne4 {[%clk 0:02:57]} 8. Nc3 {[%clk 0:02:14]}  e6 {[%clk 0:02:55]} 9. Nxe4 {[%clk 0:02:11]}  dxe4 {[%clk 0:02:56]} 10. Nd2 {[%clk 0:02:11]}  f5 {[%clk 0:02:56]} 11. b4 {[%clk 0:02:05]}  a5 {[%clk 0:02:53]} 12. b5 {[%clk 0:02:04]}  cxb5 {[%clk 0:02:53]} 13. cxb5 {[%clk 0:02:02]}  Nd7 {[%clk 0:02:54]} 14. Ba3 {[%clk 0:01:53]}  Rf7 {[%clk 0:02:54]} 15. Nc4 {[%clk 0:01:54]}  Bf8 {[%clk 0:02:54]} 16. Bxf8 {[%clk 0:01:53]}  Rxf8 {[%clk 0:02:52]} 17. Rc1 {[%clk 0:01:41]}  Nb6 {[%clk 0:02:51]} 18. Nxb6 {[%clk 0:01:36]}  Qxb6 {[%clk 0:02:52]} 19. Rc5 {[%clk 0:01:37]}  Bd7 {[%clk 0:02:51]} 20. a4 {[%clk 0:01:26]}  Rac8 {[%clk 0:02:50]} 21. Qd2 {[%clk 0:01:27]}  Qd6 {[%clk 0:02:47]} 22. Rxc8 {[%clk 0:01:23]}  Rxc8 {[%clk 0:02:47]} 23. Qxa5 {[%clk 0:01:23]}  Rc2 {[%clk 0:02:46]} 24. Bd1 {[%clk 0:01:19]}  Rc1 {[%clk 0:02:30]} 25. Qa8+ {[%clk 0:01:17]}  Bc8 {[%clk 0:02:26]} 26. Be2 {[%clk 0:01:17]}  Rxf1+ {[%clk 0:02:27]} 27. Bxf1 {[%clk 0:01:18]}  Qc7 {[%clk 0:02:22]} 28. a5 {[%clk 0:01:18]}  Kg7 {[%clk 0:02:22]} 29. a6 {[%clk 0:01:16]}  bxa6 {[%clk 0:02:19]} 30. bxa6 {[%clk 0:01:17]}  g5 {[%clk 0:02:18]} 31. a7 {[%clk 0:01:17]}  Bb7 {[%clk 0:02:17]} 32. Qb8 {[%clk 0:01:17]}  Qc6 {[%clk 0:02:17]} 33. g3 {[%clk 0:01:09]}  f4 {[%clk 0:02:17]} 34. gxf4 {[%clk 0:01:08]}  gxf4 {[%clk 0:02:17]} 35. Qxf4 {[%clk 0:01:08]}  Qc1 {[%clk 0:02:07]} 36. Qe5+ {[%clk 0:01:03]}  Kf7 {[%clk 0:02:07]} 37. Qb8 {[%clk 0:01:03]}  Qc6 {[%clk 0:01:54]} 38. Bc4 {[%clk 0:01:02]}  Qxc4 {[%clk 0:01:36]} 39. Qxb7+ {[%clk 0:01:02]}  Kf6 {[%clk 0:01:37]} 40. a8=Q {[%clk 0:01:01]} 1-0


[Site "https://www.chess.com"]

[Event "Titled Tuesday Blitz March 29 Late 2022"]
[White "Omariev, Maksim"]
[Black "Nazaretyan, Tigran"]
[WhiteFideId "4193423"]
[BlackFideId "24162345"]
[WhiteElo "2511"]
[BlackElo "2219"]
[Result "1-0"]
[Round "05"]
[TimeControl "180+1"]
[Date "2022.03.30"]
[WhiteClock "0:00:32"]
[BlackClock "0:00:13"]

1. e4 {[%clk 0:03:00]}  c5 {[%clk 0:02:56]} 2. Nf3 {[%clk 0:03:00]}  Nc6 {[%clk 0:02:56]} 3. d4 {[%clk 0:03:01]}  cxd4 {[%clk 0:02:57]} 4. Nxd4 {[%clk 0:03:02]}  Nf6 {[%clk 0:02:57]} 5. Nc3 {[%clk 0:03:02]}  d6 {[%clk 0:02:58]} 6. Bg5 {[%clk 0:03:01]}  e6 {[%clk 0:02:58]} 7. Qd2 {[%clk 0:03:02]}  a6 {[%clk 0:02:58]} 8. f3 {[%clk 0:03:00]}  Bd7 {[%clk 0:02:58]} 9. h4 {[%clk 0:02:58]}  b5 {[%clk 0:02:49]} 10. O-O-O {[%clk 0:02:56]}  h6 {[%clk 0:02:48]} 11. Nxc6 {[%clk 0:02:45]}  Bxc6 {[%clk 0:02:47]} 12. Bf4 {[%clk 0:02:46]}  e5 {[%clk 0:02:42]} 13. Be3 {[%clk 0:02:46]}  b4 {[%clk 0:02:40]} 14. Nd5 {[%clk 0:02:44]}  a5 {[%clk 0:02:23]} 15. Bb6 {[%clk 0:02:35]}  Qb8 {[%clk 0:02:08]} 16. Nc7+ {[%clk 0:02:29]}  Kd7 {[%clk 0:02:07]} 17. Nxa8 {[%clk 0:02:28]}  Qxa8 {[%clk 0:02:07]} 18. Bc4 {[%clk 0:02:24]}  Be7 {[%clk 0:01:56]} 19. Bxf7 {[%clk 0:02:20]}  Rb8 {[%clk 0:01:56]} 20. Bc5 {[%clk 0:02:16]}  Ne8 {[%clk 0:01:23]} 21. Rhe1 {[%clk 0:01:42]}  Kc7 {[%clk 0:01:22]} 22. Bxe8 {[%clk 0:01:37]}  dxc5 {[%clk 0:01:15]} 23. Bxc6 {[%clk 0:01:35]}  Qxc6 {[%clk 0:01:16]} 24. Qd5 {[%clk 0:01:25]}  Qxd5 {[%clk 0:01:09]} 25. Rxd5 {[%clk 0:01:26]}  Bxh4 {[%clk 0:01:08]} 26. Red1 {[%clk 0:01:27]}  Bg5+ {[%clk 0:01:06]} 27. Kb1 {[%clk 0:01:27]}  Kc6 {[%clk 0:00:37]} 28. Rxe5 {[%clk 0:01:25]}  Bf6 {[%clk 0:00:37]} 29. Re6+ {[%clk 0:01:24]}  Kb5 {[%clk 0:00:38]} 30. e5 {[%clk 0:01:23]}  Bg5 {[%clk 0:00:37]} 31. Rd7 {[%clk 0:01:21]}  a4 {[%clk 0:00:31]} 32. Rxg7 {[%clk 0:01:17]}  a3 {[%clk 0:00:31]} 33. g3 {[%clk 0:01:06]}  axb2 {[%clk 0:00:22]} 34. Kxb2 {[%clk 0:01:04]}  Be3 {[%clk 0:00:21]} 35. f4 {[%clk 0:01:01]}  Bd4+ {[%clk 0:00:20]} 36. Kb1 {[%clk 0:00:59]}  Ra8 {[%clk 0:00:19]} 37. Rxh6 {[%clk 0:00:55]}  Ra3 {[%clk 0:00:18]} 38. Rd6 {[%clk 0:00:43]}  Rf3 {[%clk 0:00:16]} 39. Rxd4 {[%clk 0:00:38]}  cxd4 {[%clk 0:00:17]} 40. e6 {[%clk 0:00:37]}  Kc5 {[%clk 0:00:15]} 41. e7 {[%clk 0:00:34]}  Re3 {[%clk 0:00:15]} 42. f5 {[%clk 0:00:33]}  Kd6 {[%clk 0:00:16]} 43. f6 {[%clk 0:00:34]}  Kd7 {[%clk 0:00:16]} 44. Rg8 {[%clk 0:00:32]}  d3 {[%clk 0:00:15]} 45. Rd8+ {[%clk 0:00:31]}  Kc7 {[%clk 0:00:14]} 46. cxd3 {[%clk 0:00:31]}  Re6 {[%clk 0:00:13]} 47. e8=Q {[%clk 0:00:31]}  Rxe8 {[%clk 0:00:13]} 48. Rxe8 {[%clk 0:00:32]}  b3 {[%clk 0:00:13]} 49. axb3 {[%clk 0:00:32]} 1-0


[Site "https://www.chess.com"]

[Event "Titled Tuesday Blitz March 29 Late 2022"]
[White "Papasimakopoulos, Alexandros"]
[Black "Aravindh, Chithambaram VR."]
[WhiteFideId "4244125"]
[BlackFideId "5072786"]
[WhiteElo "2340"]
[BlackElo "2561"]
[Result "1/2-1/2"]
[Round "05"]
[TimeControl "180+1"]
[Date "2022.03.29"]
[WhiteClock "0:00:11"]
[BlackClock "0:00:05"]

1. d4 {[%clk 0:03:00]}  g6 {[%clk 0:03:00]} 2. e4 {[%clk 0:02:57]}  Bg7 {[%clk 0:03:00]} 3. c4 {[%clk 0:02:56]}  d6 {[%clk 0:02:58]} 4. Nc3 {[%clk 0:02:55]}  e5 {[%clk 0:02:58]} 5. Nge2 {[%clk 0:02:54]}  Nc6 {[%clk 0:02:56]} 6. Be3 {[%clk 0:02:54]}  Nh6 {[%clk 0:02:54]} 7. f3 {[%clk 0:02:52]}  f5 {[%clk 0:02:54]} 8. d5 {[%clk 0:02:45]}  Ne7 {[%clk 0:02:53]} 9. Qd2 {[%clk 0:02:45]}  f4 {[%clk 0:02:47]} 10. Bf2 {[%clk 0:02:45]}  g5 {[%clk 0:02:48]} 11. g4 {[%clk 0:02:32]}  Ng6 {[%clk 0:02:30]} 12. h3 {[%clk 0:02:20]}  Nf7 {[%clk 0:02:29]} 13. O-O-O {[%clk 0:02:20]}  h5 {[%clk 0:02:27]} 14. Rg1 {[%clk 0:02:20]}  Bd7 {[%clk 0:02:12]} 15. Kb1 {[%clk 0:02:17]}  hxg4 {[%clk 0:01:51]} 16. hxg4 {[%clk 0:02:16]}  Rh2 {[%clk 0:01:51]} 17. Rg2 {[%clk 0:02:16]}  Rh3 {[%clk 0:01:49]} 18. Ng1 {[%clk 0:02:12]}  Rh1 {[%clk 0:01:47]} 19. c5 {[%clk 0:02:09]}  Nh4 {[%clk 0:01:46]} 20. Bxh4 {[%clk 0:02:07]}  Rxh4 {[%clk 0:01:46]} 21. c6 {[%clk 0:02:05]}  bxc6 {[%clk 0:01:43]} 22. dxc6 {[%clk 0:02:06]}  Bxc6 {[%clk 0:01:41]} 23. Bb5 {[%clk 0:02:02]}  Bxb5 {[%clk 0:01:36]} 24. Nxb5 {[%clk 0:02:03]}  a6 {[%clk 0:01:27]} 25. Nc3 {[%clk 0:01:52]}  c6 {[%clk 0:01:27]} 26. Nge2 {[%clk 0:01:48]}  Qb6 {[%clk 0:01:22]} 27. Qc2 {[%clk 0:01:43]}  Bf6 {[%clk 0:01:07]} 28. Na4 {[%clk 0:01:42]}  Qb5 {[%clk 0:01:06]} 29. Nec3 {[%clk 0:01:42]}  Qb7 {[%clk 0:01:05]} 30. Rgd2 {[%clk 0:01:38]}  Be7 {[%clk 0:01:05]} 31. Qd3 {[%clk 0:01:33]}  a5 {[%clk 0:00:47]} 32. Qc4 {[%clk 0:01:33]}  Qa6 {[%clk 0:00:42]} 33. Qe6 {[%clk 0:01:19]}  Rh6 {[%clk 0:00:37]} 34. Qf5 {[%clk 0:01:19]}  Qc8 {[%clk 0:00:34]} 35. Nb6 {[%clk 0:01:11]}  Qxf5 {[%clk 0:00:34]} 36. gxf5 {[%clk 0:01:12]}  Ra6 {[%clk 0:00:28]} 37. Nc4 {[%clk 0:01:11]}  a4 {[%clk 0:00:22]} 38. a3 {[%clk 0:01:09]}  Kd7 {[%clk 0:00:12]} 39. Rd3 {[%clk 0:00:57]}  Kc7 {[%clk 0:00:12]} 40. Rc1 {[%clk 0:00:55]}  Kb7 {[%clk 0:00:11]} 41. Na2 {[%clk 0:00:53]}  Ra8 {[%clk 0:00:10]} 42. Rdc3 {[%clk 0:00:50]}  g4 {[%clk 0:00:09]} 43. fxg4 {[%clk 0:00:48]}  Ng5 {[%clk 0:00:10]} 44. Nd2 {[%clk 0:00:46]}  c5 {[%clk 0:00:09]} 45. Rd3 {[%clk 0:00:41]}  Rh2 {[%clk 0:00:09]} 46. f6 {[%clk 0:00:40]}  Bxf6 {[%clk 0:00:08]} 47. Rxd6 {[%clk 0:00:40]}  Rd8 {[%clk 0:00:09]} 48. Rxd8 {[%clk 0:00:20]}  Bxd8 {[%clk 0:00:09]} 49. Nc4 {[%clk 0:00:20]}  Bc7 {[%clk 0:00:10]} 50. Re1 {[%clk 0:00:20]}  f3 {[%clk 0:00:08]} 51. Nc3 {[%clk 0:00:20]}  f2 {[%clk 0:00:07]} 52. Rf1 {[%clk 0:00:21]}  Rg2 {[%clk 0:00:07]} 53. Nd1 {[%clk 0:00:21]}  Rg1 {[%clk 0:00:06]} 54. Nce3 {[%clk 0:00:21]}  Nxe4 {[%clk 0:00:06]} 55. Kc2 {[%clk 0:00:21]}  c4 {[%clk 0:00:04]} 56. g5 {[%clk 0:00:20]}  Bb6 {[%clk 0:00:04]} 57. g6 {[%clk 0:00:19]}  Bxe3 {[%clk 0:00:04]} 58. Nxe3 {[%clk 0:00:20]}  Rxg6 {[%clk 0:00:05]} 59. Kd1 {[%clk 0:00:19]}  Rd6+ {[%clk 0:00:05]} 60. Kc1 {[%clk 0:00:18]}  Rd3 {[%clk 0:00:03]} 61. Nxc4 {[%clk 0:00:17]}  Rf3 {[%clk 0:00:04]} 62. Nxe5 {[%clk 0:00:18]}  Ng3 {[%clk 0:00:03]} 63. Nxf3 {[%clk 0:00:17]}  Nxf1 {[%clk 0:00:04]} 64. b3 {[%clk 0:00:11]}  axb3 {[%clk 0:00:04]} 65. Kb2 {[%clk 0:00:12]}  Kc6 {[%clk 0:00:04]} 66. a4 {[%clk 0:00:11]}  Kd5 {[%clk 0:00:03]} 67. Kc3 {[%clk 0:00:12]}  Ke4 {[%clk 0:00:03]} 68. Ng5+ {[%clk 0:00:11]}  Ke3 {[%clk 0:00:03]} 69. Nh3 {[%clk 0:00:09]}  Ng3 {[%clk 0:00:02]} 70. Nxf2 {[%clk 0:00:10]}  Kxf2 {[%clk 0:00:03]} 71. Kxb3 {[%clk 0:00:10]}  Ke3 {[%clk 0:00:03]} 72. Kc4 {[%clk 0:00:11]}  Ne4 {[%clk 0:00:03]} 73. a5 {[%clk 0:00:11]}  Nd6+ {[%clk 0:00:04]} 74. Kc5 {[%clk 0:00:10]}  Nb7+ {[%clk 0:00:04]} 75. Kb6 {[%clk 0:00:11]}  Nxa5 {[%clk 0:00:05]} 1/2-1/2


[Site "https://www.chess.com"]